bitfinex/quotes_SOLUSD_20251103
["timestamp","ask_amount","ask_price","bid_price","bid_amount"]
[1762141598845,4.88903834,178.78,178.74,0.71]
[1762141599059,4.88903834,178.81,178.74,0.71]
[1762141599340,4.88903834,178.8,178.74,5.59903834]
[1762141599516,4.88903834,178.79,178.75,0.71]
[1762141599932,4.88903834,178.8,178.75,0.71]
[1762141600836,0.55956577,178.82,178.76,5.59409263]
[1762141601136,4.88903834,178.79,178.73,5.59903834]
[1762141601515,4.88903834,178.79,178.74,0.71]
[1762141601931,4.88903834,178.77,178.72,0.71]
[1762141602107,4.88903834,178.77,178.71,4.88903834]
[1762141602539,4.88903834,178.77,178.72,0.71]
[1762141602844,4.88903834,178.79,178.74,5.59471858]
[1762141603432,4.88903834,178.79,178.74,6.30471858]
[1762141603840,4.88903834,178.79,178.74,5.59471858]
[1762141604139,0.55956577,178.81,178.76,4.88903834]
[1762141604342,0.55956577,178.81,178.75,0.71]
[1762141604343,4.88903834,178.8,178.75,0.71]
[1762141605942,4.88903834,178.81,178.75,5.59903834]
[1762141606243,4.88903834,178.8,178.76,5.59409263]
[1762141606741,4.88903834,178.8,178.77,0.71]
[1762141607062,4.88903834,178.81,178.77,0.71]
[1762141607414,4.88903834,178.81,178.78,5.59346683]
[1762141607660,0.55956577,178.85,178.78,10.48250517]
[1762141607817,50.0,178.87,178.81,4.88903834]
[1762141607818,4.88903834,178.87,178.81,4.88903834]
[1762141608218,4.88903834,178.87,178.82,0.71]
[1762141608448,0.55956577,178.89,178.82,0.71]
[1762141608639,4.88903834,178.87,178.82,0.71]
[1762141609022,4.88903834,178.89,178.83,4.88903834]
[1762141609230,0.55956577,178.9,178.83,4.88903834]
[1762141609559,0.55956577,178.92,178.84,0.71]
[1762141609852,50.55956577,178.91,178.79,21.302]
[1762141610054,4.88903834,178.86,178.8,4.88903834]
[1762141610230,5.44860411,178.85,178.77,0.71]
[1762141610418,4.88903834,178.81,178.77,0.71]
[1762141611165,4.88903834,178.8,178.74,0.71]
[1762141611463,4.88903834,178.79,178.74,6.30471858]
[1762141611768,0.55956577,178.78,178.72,0.71]
[1762141611957,4.88903834,178.77,178.72,0.71]
[1762141612669,4.88903834,178.74,178.69,5.59628406]
[1762141612960,50.55956577,178.78,178.69,5.59628406]
[1762141613154,4.88903834,178.75,178.7,0.71]
[1762141613665,4.88903834,178.73,178.67,11.19594884]
[1762141613874,0.55956577,178.77,178.7,4.88903834]
[1762141614048,50.0,178.8,178.68,0.71]
[1762141614049,4.88903834,178.78,178.68,0.71]
[1762141614235,4.88903834,178.72,178.68,0.71]
[1762141614433,5.59315397,178.79,178.68,0.71]
[1762141614434,5.44860411,178.71,178.68,0.71]
[1762141614660,5.44860411,178.71,178.66,16.05652951]
[1762141614661,4.88903834,178.71,178.66,16.05652951]
[1762141614965,4.88903834,178.68,178.66,9.74935966]
[1762141615348,0.55956577,178.73,178.67,5.59903834]
[1762141615538,0.55956577,178.73,178.68,10.4856356]
[1762141615744,4.88903834,178.72,178.68,6.30659726]
[1762141616142,4.88903834,178.69,178.66,9.74935966]
[1762141616341,5.44860411,178.71,178.66,15.3464029]
[1762141616539,5.44860411,178.71,178.66,9.74935966]
[1762141616540,4.88903834,178.68,178.66,9.74935966]
[1762141616767,4.88903834,178.69,178.66,15.34654307]
[1762141616978,50.0,178.73,178.66,15.34654307]
[1762141616979,4.88903834,178.67,178.66,9.74935966]
[1762141617774,0.55956577,178.68,178.66,9.74935966]
[1762141617939,4.88903834,178.69,178.66,9.74935966]
[1762141618132,5.44860411,178.68,178.66,9.74935966]
[1762141618473,4.88903834,178.69,178.66,9.74935966]
[1762141618674,0.55956577,178.68,178.66,9.74935966]
[1762141619175,4.88903834,178.67,178.66,9.74935966]
[1762141620266,10.48594884,178.67,178.66,9.74935966]
[1762141620568,5.44860411,178.67,178.66,9.74935966]
[1762141620750,4.88903834,178.7,178.66,10.45935966]
[1762141620949,0.55956577,178.69,178.66,9.74935966]
[1762141621260,5.44860411,178.71,178.66,16.05653583]
[1762141621468,5.44860411,178.7,178.66,10.45935966]
[1762141621666,0.55956577,178.7,178.66,9.74935966]
[1762141621857,4.88903834,178.73,178.67,0.71]
[1762141622085,0.55956577,178.72,178.67,5.59903834]
[1762141622239,27.95776254,178.85,178.67,5.59903834]
[1762141622240,4.88903834,178.76,178.69,4.88903834]
[1762141622445,1.99999999,178.87,178.67,0.71]
[1762141622446,0.55956577,178.78,178.74,4.88903834]
[1762141622752,4.88903834,178.81,178.74,4.88903834]
[1762141622976,0.55956577,178.8,178.75,5.59903834]
[1762141623273,4.88903834,178.81,178.75,5.59903834]
[1762141623481,50.0,178.85,178.72,5.59903834]
[1762141623482,4.88903834,178.78,178.72,5.59903834]
[1762141623643,4.88903834,178.75,178.69,5.59903834]
[1762141623843,4.88903834,178.76,178.69,5.59903834]
[1762141624064,4.88903834,178.76,178.7,5.59903834]
[1762141624591,5.44860411,178.75,178.69,4.88903834]
[1762141624768,50.0,178.85,178.74,4.88903834]
[1762141624967,4.88903834,178.83,178.75,0.71]
[1762141625143,0.55956577,178.82,178.75,0.71]
[1762141625348,50.0,178.85,178.72,0.71]
[1762141625349,4.88903834,178.77,178.72,0.71]
[1762141625546,4.88903834,178.76,178.72,6.3051353]
[1762141625745,4.88903834,178.76,178.72,0.71]
[1762141625958,4.88903834,178.76,178.72,0.72]
[1762141626158,0.55956577,178.77,178.7,6.31592723]
[1762141626373,4.88903834,178.76,178.71,0.72]
[1762141626561,13.98024365,178.83,178.75,4.88903834]
[1762141626562,0.55956577,178.8,178.75,4.88903834]
[1762141626757,27.9490162,178.9,178.76,4.88903834]
[1762141626758,5.44860411,178.82,178.76,4.88903834]
[1762141627189,0.55956577,178.84,178.79,4.88903834]
[1762141627390,4.88903834,178.85,178.79,4.88903834]
[1762141627691,5.44860411,178.87,178.81,10.48156672]
[1762141627985,5.44860411,178.87,178.81,11.20156672]
[1762141628200,0.55956577,178.89,178.83,4.88903834]
[1762141628491,5.44860411,178.91,178.85,4.88903834]
[1762141628871,5.44860411,178.91,178.85,0.72]
[1762141628872,4.88903834,178.9,178.85,0.72]
[1762141629184,4.88903834,178.91,178.85,5.60903834]
[1762141629388,4.88903834,178.91,178.86,5.590965]
[1762141629566,0.55956577,178.91,178.86,10.48000334]
[1762141629771,4.88903834,178.94,178.87,5.60903834]
[1762141629977,5.44860411,178.93,178.87,5.60903834]
[1762141630174,5.44860411,178.93,178.81,30.94008052]
[1762141630175,4.88903834,178.9,178.83,0.72]
[1762141630479,5.44860411,178.89,178.83,5.60903834]
[1762141630960,5.44860411,178.89,178.83,11.20086257]
[1762141631866,6.1496107,178.89,178.83,0.72]
[1762141632091,0.55956577,178.89,178.84,0.72]
[1762141632272,4.88903834,178.89,178.84,0.72]
[1762141632482,5.44860411,178.91,178.85,4.88903834]
[1762141632680,0.55956577,178.93,178.88,4.88903834]
[1762141632883,4.88903834,178.91,178.85,4.88903834]
[1762141633091,13.97038278,178.95,178.84,0.72]
[1762141633092,4.88903834,178.89,178.84,0.72]
[1762141633387,0.55956577,178.93,178.84,5.60903834]
[1762141633571,4.88903834,178.89,178.85,5.5912776]
[1762141633770,4.88903834,178.9,178.85,6.3112776]
[1762141633972,0.55956577,178.93,178.85,5.5912776]
[1762141633973,4.88903834,178.89,178.85,5.5912776]
[1762141634190,6.14849482,178.93,178.85,6.3112776]
[1762141634393,7.19639986,178.91,178.85,6.3112776]
[1762141634570,7.19639986,178.9,178.85,12.78767746]
[1762141634891,6.14849482,178.93,178.8,30.38082769]
[1762141634892,7.19639986,178.86,178.8,6.31284116]
[1762141635061,50.0,178.91,178.8,6.31284116]
[1762141635062,0.55956577,178.92,178.85,7.19639986]
[1762141635259,7.19639986,178.94,178.88,7.19639986]
[1762141635461,0.55956577,178.93,178.88,7.91639986]
[1762141635666,7.19639986,178.94,178.89,5.59002739]
[1762141635894,7.19639986,178.94,178.89,6.31002739]
[1762141636074,7.19639986,178.94,178.9,0.72]
[1762141636391,7.19639986,178.92,178.87,0.72]
[1762141637180,7.75596563,178.91,178.87,0.72]
[1762141637373,7.75596563,178.91,178.85,5.5912776]
[1762141637374,7.19639986,178.9,178.85,5.5912776]
[1762141637685,7.19639986,178.9,178.85,6.3112776]
[1762141637862,7.19639986,178.9,178.86,0.72]
[1762141638305,50.0,178.87,178.79,0.72]
[1762141638476,7.19639986,178.86,178.8,0.72]
[1762141638681,7.19639986,178.83,178.8,0.72]
[1762141639171,0.55956577,178.88,178.8,0.72]
[1762141639376,7.19639986,178.85,178.8,0.72]
[1762141639578,7.75596563,178.84,178.8,0.72]
[1762141640069,7.75596563,178.84,178.8,6.31280135]
[1762141640694,7.75596563,178.84,178.8,0.72]
[1762141640896,7.75596563,178.84,178.8,6.31283462]
[1762141641104,0.55956577,178.84,178.8,6.31283462]
[1762141641402,0.55956577,178.88,178.81,0.72]
[1762141641566,0.55956577,178.88,178.82,5.59221563]
[1762141641766,7.75596563,178.9,178.83,7.19639986]
[1762141641988,7.75596563,178.9,178.83,7.91639986]
[1762141642182,7.19639986,178.9,178.84,7.91639986]
[1762141642395,7.75596563,178.91,178.84,7.91639986]
[1762141642599,7.75596563,178.91,178.85,0.72]
[1762141642771,7.75596563,178.91,178.85,7.91639986]
[1762141643092,7.19639986,178.92,178.86,7.19639986]
[1762141643308,0.55956577,178.94,178.86,0.72]
[1762141643475,0.55956577,178.96,178.91,7.19639986]
[1762141643668,0.55956577,178.96,178.92,5.58909009]
[1762141643669,7.75596563,178.96,178.92,5.58909009]
[1762141644103,7.75596563,178.96,178.92,6.30909009]
[1762141644391,7.75596563,178.96,178.88,7.91639986]
[1762141644392,7.19639986,178.95,178.88,7.91639986]
[1762141644618,7.19639986,178.95,178.88,0.72]
[1762141644800,7.19639986,178.95,178.89,7.91639986]
[1762141645179,7.75596563,178.94,178.89,0.72]
[1762141645477,7.19639986,178.94,178.89,0.72]
[1762141645680,7.19639986,178.94,178.9,5.58971492]
[1762141645897,7.19639986,178.94,178.89,6.3100039]
[1762141646294,0.55956577,178.95,178.9,7.91639986]
[1762141646479,50.2,178.99,178.89,5.5900039]
[1762141646480,0.55956577,178.98,178.91,0.72]
[1762141647001,0.55956577,178.98,178.86,5.590965]
[1762141647200,50.0,178.97,178.86,6.310965]
[1762141647401,0.55956577,178.96,178.87,0.72]
[1762141647585,0.55956577,178.98,178.88,5.59033989]
[1762141648100,5.58752863,178.97,178.89,0.72]
[1762141648289,0.55956577,178.96,178.89,0.72]
[1762141649511,0.55956577,178.97,178.89,0.72]
[1762141649711,0.55956577,178.97,178.9,5.58971492]
[1762141650298,56.1471466,178.97,178.89,5.58999993]
[1762141650498,70.11596819,178.97,178.87,0.72]
[1762141650683,50.0,178.91,178.79,13.98223558]
[1762141650909,20.592,178.94,178.82,0.72]
[1762141650910,0.55956577,178.9,178.82,0.72]
[1762141651079,0.55956577,178.92,178.82,0.72]
[1762141651482,50.0,178.91,178.79,13.98223558]
[1762141651686,5.59033989,178.88,178.79,6.31290975]
[1762141651917,0.55956577,178.87,178.8,0.72]
[1762141652120,50.0,178.85,178.76,0.72]
[1762141652304,0.55956577,178.84,178.76,6.31408148]
[1762141652603,0.55956577,178.84,178.76,0.72]
[1762141652802,0.55956577,178.84,178.73,0.72]
[1762141653393,50.0,178.83,178.73,0.72]
[1762141653606,50.0,178.81,178.7,0.72]
[1762141653907,6.15240693,178.8,178.71,5.59565776]
[1762141654101,0.55956577,178.8,178.71,5.59565776]
[1762141654324,0.55956577,178.8,178.71,6.31565776]
[1762141654651,50.0,178.79,178.71,0.72]
[1762141654799,0.55956577,178.8,178.7,5.59593484]
[1762141654800,0.55956577,178.8,178.72,0.72]
[1762141655820,0.55956577,178.82,178.73,19.58261063]
[1762141656322,6.15115601,178.84,178.74,0.68]
[1762141656525,50.0,178.83,178.74,0.68]
[1762141656828,0.55956577,178.82,178.74,0.68]
[1762141657333,0.55956577,178.85,178.74,0.68]
[1762141657705,0.55956577,178.85,178.75,19.58041957]
[1762141658008,0.55956577,178.85,178.76,0.68]
[1762141658628,0.55956577,178.87,178.76,0.68]
[1762141659208,0.55956577,178.9,178.77,9.78882769]
[1762141659715,0.55956577,178.9,178.8,19.57494406]
[1762141659917,0.55956577,178.92,178.81,0.68]
[1762141661603,0.55956577,178.94,178.81,0.68]
[1762141662118,6.14820934,178.94,178.82,19.57275471]
[1762141662318,0.55956577,178.94,178.82,19.57275471]
[1762141662516,6.14805189,178.94,178.83,0.68]
[1762141663123,50.0,178.92,178.83,0.68]
[1762141663324,0.55956577,178.94,178.83,0.68]
[1762141663627,0.55956577,178.95,178.84,10.34798671]
[1762141663817,0.55956577,178.95,178.84,9.78882769]
[1762141663999,0.55956577,178.95,178.86,19.5683775]
[1762141664432,0.75956577,178.99,178.87,10.46882769]
[1762141664933,0.75956577,178.99,178.88,0.68]
[1762141665106,0.75956577,178.99,178.88,1.23903398]
[1762141665421,0.2,178.99,178.9,20.592]
[1762141665722,0.2,178.99,178.91,0.68]
[1762141666027,0.2,178.99,178.92,19.56181533]
[1762141666527,0.2,178.99,178.93,0.68]
[1762141667324,0.55956577,178.98,178.93,0.68]
[1762141668242,0.2,178.99,178.94,5.5884654]
[1762141668723,0.2,178.99,178.95,0.68]
[1762141668939,0.2,178.99,178.94,0.68]
[1762141669102,0.2,178.99,178.93,5.58876681]
[1762141669431,0.2,178.99,178.93,6.26876681]
[1762141669633,0.55956577,178.98,178.94,0.68]
[1762141669832,0.2,178.99,178.94,0.68]
[1762141670005,0.2,178.99,178.91,6.26911146]
[1762141670332,0.2,178.99,178.87,0.68]
[1762141670333,0.55956577,178.98,178.87,0.68]
[1762141670627,0.55956577,178.98,178.88,0.68]
[1762141671430,0.2,178.99,178.89,10.34783042]
[1762141671824,0.2,178.99,178.91,9.78882769]
[1762141672124,0.2,178.99,178.91,5.58940249]
[1762141672429,0.2,178.99,178.92,0.68]
[1762141673527,0.75956577,178.99,178.92,0.68]
[1762141674235,6.34662573,178.99,178.93,5.58877773]
[1762141674425,6.34648938,178.99,178.93,5.58877773]
[1762141674942,0.75956577,178.99,178.93,5.58877773]
[1762141675239,0.2,178.99,178.94,0.68]
[1762141676229,0.2,178.99,178.95,5.58815311]
[1762141676744,0.2,178.99,178.92,0.68]
[1762141676934,0.2,178.99,178.9,19.56387334]
[1762141677143,0.2,178.99,178.91,0.68]
[1762141677335,0.2,178.99,178.91,21.272]
[1762141677750,0.2,179.02,178.92,11.02773669]
[1762141677934,0.2,179.02,178.95,20.592]
[1762141678253,0.2,179.05,178.99,9.78882769]
[1762141678619,0.2,179.05,179.0,0.68]
[1762141680224,5.78513178,179.05,178.96,0.68]
[1762141680419,0.55956577,179.04,178.96,6.26784085]
[1762141680724,0.55956577,179.04,178.96,0.68]
[1762141680923,0.55956577,179.04,178.97,0.68]
[1762141681750,0.2,179.05,178.97,0.68]
[1762141681918,0.75956577,179.05,178.97,0.68]
[1762141682341,0.2,179.05,178.98,19.55525756]
[1762141682650,0.2,179.08,179.0,30.38082769]
[1762141682854,0.2,179.09,179.03,20.592]
[1762141683025,50.55956577,179.2,179.07,20.592]
[1762141683231,0.65,179.19,179.07,20.592]
[1762141683439,0.55956577,179.18,179.08,0.68]
[1762141683840,0.65,179.17,179.08,0.68]
[1762141684025,0.55956577,179.16,179.08,0.68]
[1762141684348,0.55956577,179.16,179.09,5.58378468]
[1762141684538,1.20956577,179.16,179.04,10.34736209]
[1762141684742,50.0,179.15,179.05,6.26503211]
[1762141684945,50.0,179.15,178.96,1.99999999]
[1762141684946,70.592,179.12,178.96,16.79402132]
[1762141685136,50.0,179.09,178.96,16.79402132]
[1762141685336,51.20956577,179.11,178.97,1.23875286]
[1762141685651,50.0,179.09,178.98,0.68]
[1762141685825,0.55956577,179.08,178.98,0.68]
[1762141686238,5.5847202,179.06,178.99,5.58690429]
[1762141686552,0.55956577,179.07,179.02,20.592]
[1762141686724,0.55956577,179.13,179.0,31.6394869]
[1762141686930,0.55956577,179.13,179.01,0.7]
[1762141687252,27.08258365,179.33,179.01,0.7]
[1762141687253,0.69,179.18,179.03,30.38082769]
[1762141687426,0.55956577,179.17,179.04,0.5585344]
[1762141687633,0.55956577,179.17,179.04,1.2585344]
[1762141688135,0.55956577,179.17,179.05,0.7]
[1762141688337,0.55956577,179.17,179.06,19.54652071]
[1762141688650,6.14092751,179.17,179.06,19.54652071]
[1762141688848,0.55956577,179.17,179.07,0.7]
[1762141689249,0.55956577,179.18,179.08,9.78882769]
[1762141689455,0.55956577,179.18,179.09,0.7]
[1762141689761,0.55956577,179.2,179.09,1.25837846]
[1762141689969,0.55956577,179.2,179.09,0.7]
[1762141690260,0.55956577,179.2,179.08,0.55840964]
[1762141690261,0.55956577,179.2,179.1,0.7]
[1762141690438,0.55956577,179.2,179.11,19.54106414]
[1762141690849,0.55956577,179.2,179.11,20.24106414]
[1762141691156,1.24956577,179.2,179.11,20.24106414]
[1762141691457,0.55956577,179.2,179.12,0.7]
[1762141691754,0.55956577,179.22,179.12,0.7]
[1762141692056,1.24956577,179.22,179.12,0.7]
[1762141692262,0.55956577,179.22,179.12,0.7]
[1762141692460,0.55956577,179.22,179.13,19.53888237]
[1762141692861,0.55956577,179.22,179.13,20.23888237]
[1762141693158,0.55956577,179.22,179.14,0.7]
[1762141693734,5.67947834,179.23,179.14,0.7]
[1762141693735,0.65956577,179.23,179.14,0.7]
[1762141694138,0.1,179.23,179.14,0.7]
[1762141694346,0.65956577,179.23,179.15,5.58191459]
[1762141694552,6.92928322,179.23,179.14,26.87420186]
[1762141694946,1.34956577,179.23,179.15,0.7]
[1762141695148,6.9290387,179.23,179.15,0.7]
[1762141695943,0.65956577,179.23,179.15,0.7]
[1762141696144,0.1,179.23,179.15,0.7]
[1762141696350,6.13937909,179.22,179.16,5.58160303]
[1762141696866,50.69,179.21,179.13,5.58241236]
[1762141697044,0.55956577,179.2,179.13,5.58241236]
[1762141697563,0.55956577,179.2,179.13,19.53875691]
[1762141697745,0.55956577,179.2,179.14,0.7]
[1762141697952,0.55956577,179.22,179.14,0.7]
[1762141698152,1.24956577,179.22,179.14,0.7]
[1762141698349,0.69,179.21,179.13,5.58241236]
[1762141698540,56.13992291,179.2,179.08,0.7]
[1762141698748,56.13992291,179.2,179.07,5.58440833]
[1762141698952,0.69,179.19,179.09,0.7]
[1762141699150,0.55956577,179.18,179.09,0.7]
[1762141699545,1.24956577,179.18,179.09,0.7]
[1762141699961,0.69,179.17,179.09,0.7]
[1762141700164,0.55956577,179.16,179.09,0.7]
[1762141700760,0.55956577,179.16,179.1,5.58347292]
[1762141701352,0.55956577,179.16,179.1,19.54215522]
[1762141701753,1.24956577,179.16,179.1,5.58347292]
[1762141702782,0.69,179.15,179.08,5.58409011]
[1762141702988,20.592,179.13,179.04,17.11262158]
[1762141703143,1.24956577,179.12,179.04,5.58521601]
[1762141703346,0.69,179.11,179.04,5.58521601]
[1762141703540,0.55956577,179.1,179.04,5.58521601]
[1762141704365,0.55956577,179.1,179.04,6.28521601]
[1762141704568,0.55956577,179.12,179.04,20.24857615]
[1762141705058,0.55956577,179.12,179.05,0.71]
[1762141705666,1.24956577,179.13,179.05,0.71]
[1762141705953,0.55956577,179.13,179.05,0.71]
[1762141706151,0.55956577,179.15,179.05,0.71]
[1762141706377,0.55956577,179.21,179.08,9.78882769]
[1762141706678,0.55956577,179.21,179.11,19.54106414]
[1762141707063,6.81972155,179.21,179.12,0.71]
[1762141707376,0.55956577,179.21,179.13,9.78882769]
[1762141707676,0.65956577,179.23,179.14,0.71]
[1762141707970,0.55956577,179.22,179.14,0.71]
[1762141708878,0.55956577,179.22,179.15,19.53670108]
[1762141709169,0.1,179.23,179.15,19.53670108]
[1762141709344,0.1,179.23,179.15,20.24670108]
[1762141709550,0.1,179.23,179.16,0.71]
[1762141710759,0.1,179.23,179.17,5.58129151]
[1762141711269,0.1,179.23,179.17,6.29129151]
[1762141711480,0.1,179.23,179.17,20.24452028]
[1762141711774,6.35945825,179.23,179.17,5.58129151]
[1762141711971,0.55956577,179.22,179.17,5.58129151]
[1762141712172,1.23956577,179.22,179.17,5.58129151]
[1762141712373,0.68,179.21,179.17,5.58129151]
[1762141712680,1.23956577,179.21,179.15,5.58160316]
[1762141712880,1.23956577,179.21,179.13,6.29226397]
[1762141713071,1.23956577,179.21,179.13,5.58226397]
[1762141713072,0.68,179.2,179.13,5.58226397]
[1762141713383,0.55956577,179.19,179.13,5.58226397]
[1762141715156,0.55956577,179.19,179.12,5.58284948]
[1762141715462,6.82028029,179.19,179.12,5.58284948]
[1762141715782,6.82028029,179.19,179.11,22.58870154]
[1762141715962,0.71,179.18,179.11,22.58870154]
[1762141716169,0.55956577,179.17,179.11,22.58870154]
[1762141716481,0.55956577,179.17,179.08,14.66964737]
[1762141716681,0.71,179.16,179.05,13.96186162]
[1762141716979,0.55956577,179.15,179.06,0.65]
[1762141717200,0.55956577,179.15,179.07,19.54542915]
[1762141717375,0.71,179.14,179.07,19.54542915]
[1762141717686,0.55956577,179.13,179.07,19.54542915]
[1762141717889,0.55956577,179.13,179.02,26.38682522]
[1762141718056,0.71,179.12,179.02,22.83371639]
[1762141718255,0.55956577,179.11,179.02,22.83371639]
[1762141718451,0.55956577,179.11,178.94,0.55884654]
[1762141718452,50.0,179.1,178.94,0.55884654]
[1762141718656,0.55956577,179.09,178.97,0.65]
[1762141718873,50.0,179.08,178.97,0.65]
[1762141719075,5.5847202,179.06,178.98,5.58721644]
[1762141719274,0.55956577,179.05,178.98,5.58721644]
[1762141719585,51.26956577,179.05,178.95,13.97038278]
[1762141720079,0.71,179.04,178.95,14.62038278]
[1762141720269,0.55956577,179.03,178.96,20.20744299]
[1762141721264,0.55956577,179.03,178.96,19.55744299]
[1762141721471,0.55956577,179.06,178.97,0.65]
[1762141722482,0.71,179.05,178.96,19.55744299]
[1762141722680,0.55956577,179.04,178.96,19.55744299]
[1762141722885,0.55956577,179.04,178.96,5.58784085]
[1762141723194,5.58596804,179.02,178.89,9.78882769]
[1762141723497,50.0,179.0,178.89,0.65]
[1762141723699,0.55956577,178.99,178.9,0.65]
[1762141724385,50.0,178.98,178.89,5.58974045]
[1762141724582,0.55956577,178.97,178.86,14.82693244]
[1762141724782,1.26956577,178.97,178.86,14.82693244]
[1762141725108,1.26956577,178.97,178.87,19.56728349]
[1762141725290,1.26956577,178.97,178.87,20.21728349]
[1762141725479,1.26956577,178.97,178.88,0.65]
[1762141725681,6.85715335,178.97,178.88,0.65]
[1762141725875,0.71,178.96,178.88,0.65]
[1762141726076,0.55956577,178.95,178.88,0.65]
[1762141726276,1.26956577,178.97,178.88,0.65]
[1762141727287,1.26956577,178.97,178.89,19.56509586]
[1762141727607,6.8572265,178.97,178.89,19.56509586]
[1762141727907,0.71,178.96,178.89,5.59002739]
[1762141728082,0.55956577,178.95,178.86,5.79067802]
[1762141728279,0.55956577,178.95,178.86,6.44067802]
[1762141728478,0.55956577,178.95,178.87,0.65]
[1762141728680,0.55956577,178.96,178.87,0.65]
[1762141728879,1.26956577,178.98,178.87,0.65]
[1762141729186,1.26956577,178.98,178.88,19.56618962]
[1762141729389,0.55956577,178.98,178.89,0.65]
[1762141729782,0.55956577,178.99,178.89,0.65]
[1762141729987,6.85650153,178.99,178.89,0.65]
[1762141730701,1.26956577,178.99,178.89,0.65]
[1762141731578,1.26956577,178.99,178.9,19.56400223]
[1762141731797,0.55956577,178.99,178.91,0.65]
[1762141732084,0.47,178.98,178.91,0.65]
[1762141732283,0.55956577,178.97,178.91,0.65]
[1762141733284,0.55956577,178.97,178.92,5.58909009]
[1762141733610,6.14723405,178.97,178.91,6.23938643]
[1762141734314,0.55956577,178.97,178.91,6.23938643]
[1762141734519,0.55956577,178.97,178.91,19.56289266]
[1762141734744,0.55956577,179.03,178.94,20.592]
[1762141734886,50.0,179.02,178.92,0.65]
[1762141735202,6.14596047,179.01,178.93,5.58877773]
[1762141735412,6.70596047,179.01,178.93,5.58877773]
[1762141735619,5.58507762,179.05,178.94,0.65]
[1762141735790,0.55956577,179.04,178.94,0.65]
[1762141736491,0.56,179.03,178.94,0.65]
[1762141736691,0.55956577,179.02,178.94,0.65]
[1762141737413,0.55956577,179.02,178.95,19.55853589]
[1762141737613,0.55956577,179.03,178.95,19.55853589]
[1762141737815,0.55956577,179.03,178.96,0.65]
[1762141739221,5.58596804,179.02,178.96,6.2376727]
[1762141739418,0.55956577,179.01,178.96,6.2376727]
[1762141740313,0.55956577,179.01,178.95,19.55853589]
[1762141740891,0.55956577,179.02,178.95,19.55853589]
[1762141741326,1.11956577,179.02,178.95,5.58815311]
[1762141742323,5.58659217,179.0,178.9,13.97363755]
[1762141742517,0.55956577,178.99,178.9,13.97363755]
[1762141742724,1.11956577,178.99,178.9,13.97363755]
[1762141743022,0.55956577,178.99,178.91,0.65]
[1762141743227,1.11956577,179.01,178.91,0.65]
[1762141743398,50.0,179.0,178.9,13.97363755]
[1762141743597,0.55956577,178.99,178.9,13.97363755]
[1762141743812,1.11956577,178.99,178.9,13.97363755]
[1762141743998,1.11956577,178.99,178.9,14.62363755]
[1762141744405,6.70660879,178.99,178.9,20.21335247]
[1762141744736,0.56,178.98,178.9,20.21335247]
[1762141744918,0.55956577,178.97,178.9,20.21335247]
[1762141745117,0.55956577,178.97,178.87,30.38082769]
[1762141745118,0.55956577,178.97,178.89,5.58998906]
[1762141745320,0.55956577,178.97,178.89,19.56505753]
[1762141745511,0.55956577,178.97,178.9,0.65]
[1762141745911,0.55956577,178.99,178.9,0.65]
[1762141746115,0.55956577,178.99,178.92,20.592]
[1762141746434,0.55956577,179.03,178.94,19.55962891]
[1762141746733,50.0,179.03,178.94,5.5884654]
[1762141746937,1.11956577,179.02,178.94,5.5884654]
[1762141747223,0.56,179.01,178.94,5.5884654]
[1762141747424,0.55956577,179.0,178.94,6.2684654]
[1762141747595,1.11956577,179.02,178.94,6.2684654]
[1762141748221,71.152,179.01,178.86,0.2]
[1762141748414,55.58752863,178.97,178.87,5.59065242]
[1762141748617,0.55956577,178.96,178.87,5.59065242]
[1762141748826,1.11956577,178.96,178.87,5.59065242]
[1762141749211,0.56,178.95,178.87,19.56728349]
[1762141749514,0.55956577,178.94,178.87,5.59065242]
[1762141749925,1.11956577,178.94,178.87,5.59065242]
[1762141750221,0.55956577,178.94,178.87,20.24728349]
[1762141750421,0.55956577,178.95,178.89,5.59002739]
[1762141750624,0.55956577,178.95,178.89,19.56509586]
[1762141750808,0.55956577,179.01,178.9,0.68]
[1762141751132,0.55956577,179.0,178.91,9.78882769]
[1762141751433,50.0,178.98,178.88,5.59019363]
[1762141751629,0.55956577,178.97,178.89,0.68]